bitfinex/quotes_BTCUSD_20240730
["timestamp","ask_amount","ask_price","bid_price","bid_amount"]
[1722357961562,0.00256735,66626.0,66625.0,0.29785259]
[1722357961772,0.00256735,66626.0,66625.0,0.47328]
[1722357961990,0.00256735,66626.0,66625.0,0.5980394]
[1722357962186,0.00256735,66626.0,66625.0,0.2978524]
[1722357962389,0.00256735,66626.0,66625.0,0.5985811]
[1722357962592,0.00339735,66626.0,66625.0,1.01047003]
[1722357962849,0.00339735,66626.0,66625.0,0.70991173]
[1722357963487,0.00339735,66626.0,66625.0,0.40972473]
[1722357963695,0.00339735,66626.0,66625.0,0.25963173]
[1722357964101,0.00339735,66626.0,66625.0,0.40972473]
[1722357965147,0.00339735,66626.0,66625.0,0.28496533]
[1722357965323,0.00339735,66626.0,66625.0,0.40972628]
[1722357965524,0.00339735,66626.0,66625.0,0.70991328]
[1722357965700,0.00339735,66626.0,66625.0,0.40972628]
[1722357965904,0.00339735,66626.0,66625.0,0.70991328]
[1722357966117,0.00339735,66626.0,66625.0,0.23737588]
[1722357967292,0.00339735,66626.0,66625.0,0.38746888]
[1722357967489,0.00339735,66626.0,66625.0,0.68848152]
[1722357967875,0.00339735,66626.0,66625.0,1.13464288]
[1722357968006,0.00339735,66626.0,66625.0,1.45782988]
[1722357968431,0.00339735,66626.0,66625.0,1.45782625]
[1722357971401,0.00339735,66626.0,66625.0,1.15763925]
[1722357971803,0.00339735,66626.0,66625.0,1.15763922]
[1722357972823,0.0026337,66626.0,66625.0,1.15763922]
[1722357974196,0.0026337,66626.0,66625.0,1.15963922]
[1722357974396,0.0026337,66626.0,66625.0,1.20237961]
[1722357974825,0.0066337,66626.0,66625.0,1.20237961]
[1722357975031,0.0066337,66626.0,66625.0,0.000913]
[1722357975228,1.04552374,66626.0,66625.0,0.12567031]
[1722357975431,1.04552374,66626.0,66625.0,0.000913]
[1722357975432,0.74534074,66626.0,66625.0,0.000913]
[1722357975632,1.04552374,66626.0,66625.0,0.001913]
[1722357978195,1.04552374,66626.0,66625.0,0.000913]
[1722357978606,1.05352374,66626.0,66625.0,0.000913]
[1722357981487,1.04552374,66626.0,66625.0,0.000913]
[1722357981763,1.05952374,66626.0,66625.0,0.000913]
[1722357981924,1.05952374,66626.0,66625.0,0.00054161]
[1722357982122,1.04552374,66626.0,66625.0,0.00054161]
[1722357982653,1.05752374,66626.0,66625.0,0.00054161]
[1722357986420,1.05752374,66626.0,66625.0,0.00017016]
[1722357986626,1.35770674,66626.0,66625.0,0.00017016]
[1722357986828,0.896447,66618.0,66617.0,0.00071171]
[1722357987034,1.56169904,66618.0,66617.0,0.00071171]
[1722357988274,1.56350274,66618.0,66617.0,0.00071171]
[1722357988682,1.57350274,66618.0,66617.0,0.00071171]
[1722357989735,1.97372174,66618.0,66617.0,0.00071171]
[1722357990929,1.96372174,66618.0,66617.0,0.00071171]
[1722357991142,1.66350274,66618.0,66617.0,0.00071171]
[1722357991341,1.67750274,66618.0,66617.0,0.00071171]
[1722357991543,1.66350274,66618.0,66617.0,0.00071171]
[1722357991964,1.67750274,66618.0,66617.0,0.00071171]
[1722357992170,1.97772174,66618.0,66617.0,0.00071171]
[1722357994196,1.98662395,66618.0,66617.0,0.00071171]
[1722357994396,1.99662395,66618.0,66617.0,0.00071171]
[1722357995069,1.68640495,66618.0,66617.0,0.00071171]
[1722357995268,1.67240495,66618.0,66617.0,0.00071171]
[1722357995594,1.68640495,66618.0,66617.0,0.00071171]
[1722357996070,1.67240495,66618.0,66617.0,0.00071171]
[1722357996471,1.68640495,66618.0,66617.0,0.00071171]
[1722357996805,1.67240495,66618.0,66617.0,0.00071171]
[1722357997218,2.00262395,66618.0,66617.0,0.00071171]
[1722357998303,2.01662395,66618.0,66617.0,0.00071171]
[1722357998599,2.00262395,66618.0,66617.0,0.00071171]
[1722357998797,1.98262395,66618.0,66617.0,0.00071171]
[1722357998949,1.99662395,66618.0,66617.0,0.00071171]
[1722357999154,2.01662395,66618.0,66617.0,0.00071171]
[1722357999361,2.00262395,66618.0,66617.0,0.00071171]
[1722357999697,2.01662395,66618.0,66617.0,0.00071171]
[1722358000327,2.17502395,66618.0,66617.0,0.00071171]
[1722358001550,2.17502395,66618.0,66608.0,0.009295]
[1722358001551,1.734865,66609.0,66608.0,0.009295]
[1722358001729,1.98549804,66609.0,66608.0,0.009295]
[1722358002342,1.97549804,66609.0,66608.0,0.009295]
[1722358002590,1.96549804,66609.0,66608.0,0.009295]
[1722358002790,1.98130174,66609.0,66608.0,0.009295]
[1722358003014,1.53174274,66609.0,66608.0,0.009295]
[1722358004376,0.63096574,66609.0,66608.0,0.084295]
[1722358004758,0.0158037,66609.0,66608.0,0.1116148]
[1722358004987,0.0158037,66609.0,66608.0,0.1726148]
[1722358006119,0.1519327,66609.0,66608.0,0.1556763]
[1722358006352,0.90708374,66609.0,66608.0,0.1556763]
[1722358006552,0.90708374,66609.0,66608.0,0.009295]
[1722358006747,1.20734274,66609.0,66608.0,0.009295]
[1722358006947,1.21734274,66609.0,66608.0,0.009295]
[1722358007149,1.30334274,66609.0,66608.0,0.009295]
[1722358008310,1.31234274,66609.0,66608.0,0.009295]
[1722358008738,0.26143674,66609.0,66608.0,0.009295]
[1722358008893,0.71182474,66609.0,66608.0,0.074595]
[1722358009392,0.71182474,66609.0,66608.0,0.08403697]
[1722358009594,0.70282474,66609.0,66608.0,0.08403697]
[1722358009773,0.71193953,66609.0,66608.0,0.08403697]
[1722358010153,0.72593953,66609.0,66608.0,0.08403697]
[1722358010354,0.41168053,66609.0,66608.0,0.08403697]
[1722358010556,0.72093953,66609.0,66608.0,0.08403697]
[1722358010966,0.72093953,66609.0,66608.0,0.07365567]
[1722358011167,1.02119853,66609.0,66608.0,0.07365567]
[1722358011370,1.02119853,66609.0,66608.0,0.00835567]
[1722358011578,1.32145753,66609.0,66608.0,0.00835567]
[1722358012177,1.38485753,66609.0,66608.0,0.00835567]
[1722358012635,1.79411653,66609.0,66608.0,0.00835567]
[1722358013051,1.77411653,66609.0,66608.0,0.00835567]
[1722358013584,1.79411653,66609.0,66608.0,0.00835567]
[1722358013791,1.78511653,66609.0,66608.0,0.00835567]
[1722358014202,1.79911653,66609.0,66608.0,0.00835567]
[1722358014409,1.95741653,66609.0,66608.0,0.00835567]
[1722358015653,1.381228,66606.0,66605.0,0.009295]
[1722358015911,1.381228,66606.0,66593.0,0.000913]
[1722358015912,0.66489,66594.0,66593.0,0.000913]
[1722358016114,1.41617704,66594.0,66593.0,0.000913]
[1722358016416,1.41798074,66594.0,66593.0,0.000913]
[1722358016975,1.11765374,66594.0,66593.0,0.000913]
[1722358017620,1.43198074,66594.0,66593.0,0.000913]
[1722358020064,1.13165374,66594.0,66593.0,0.000913]
[1722358020832,1.43198074,66594.0,66593.0,0.000913]
[1722358021036,1.13165374,66594.0,66593.0,0.000913]
[1722358021267,1.43198074,66594.0,66593.0,0.000913]
[1722358021485,1.44088762,66594.0,66593.0,0.000913]
[1722358024058,1.14056062,66594.0,66593.0,0.000913]
[1722358025250,1.14056062,66594.0,66593.0,0.083913]
[1722358025447,1.14056062,66594.0,66593.0,0.000913]
[1722358027040,1.44088762,66594.0,66593.0,0.000913]
[1722358029651,1.14056062,66594.0,66593.0,0.000913]
[1722358030086,0.62583362,66594.0,66593.0,0.143713]
[1722358030868,0.92616062,66594.0,66593.0,0.15432954]
[1722358031321,0.92616062,66594.0,66593.0,0.143713]
[1722358032357,0.62583362,66594.0,66593.0,0.143713]
[1722358032530,0.92616062,66594.0,66593.0,0.143713]
[1722358032746,0.92616062,66594.0,66593.0,0.15432954]
[1722358032747,0.62583362,66594.0,66593.0,0.15432954]
[1722358032968,0.62583362,66594.0,66593.0,0.143713]
[1722358033182,0.92616062,66594.0,66593.0,0.15432954]
[1722358033596,0.91216062,66594.0,66593.0,0.143713]
[1722358033798,1.44088762,66594.0,66593.0,0.000913]
[1722358034016,1.14056062,66594.0,66593.0,0.000913]
[1722358034251,1.12656062,66594.0,66593.0,0.000913]
[1722358034874,1.42688762,66594.0,66593.0,0.000913]
[1722358035089,1.13756062,66594.0,66593.0,0.000913]
[1722358035504,1.12656062,66594.0,66593.0,0.000913]
[1722358036773,1.13856062,66594.0,66593.0,0.000913]
[1722358037597,0.83823362,66594.0,66593.0,0.000913]
[1722358038008,1.13856062,66594.0,66593.0,0.000913]
[1722358038410,1.13856062,66594.0,66593.0,0.61352472]
[1722358038411,0.0138037,66594.0,66593.0,0.61352472]
[1722358038684,0.0138037,66594.0,66593.0,0.93685572]
[1722358038880,0.0138037,66594.0,66593.0,1.24780269]
[1722358039051,0.0138037,66594.0,66593.0,1.07229085]
[1722358039284,0.0138037,66594.0,66593.0,0.94747169]
[1722358039492,0.0138037,66594.0,66593.0,1.07228861]
[1722358040031,0.0018037,66594.0,66593.0,0.74895761]
[1722358040237,0.0028037,66594.0,66593.0,1.05028861]
[1722358040414,0.0028037,66594.0,66593.0,0.74995761]
[1722358040620,0.0018037,66594.0,66593.0,0.62414069]
[1722358040830,0.0018037,66594.0,66593.0,0.92547169]
[1722358041029,0.0028037,66594.0,66593.0,0.74996348]
[1722358041236,0.0018037,66594.0,66593.0,1.0492948]
[1722358041439,0.0018037,66594.0,66593.0,0.92447169]
[1722358041674,0.0058037,66594.0,66593.0,0.92447169]
[1722358041897,0.0018037,66594.0,66593.0,1.22480269]
[1722358042111,0.0018037,66594.0,66593.0,1.37262609]
[1722358042321,0.0018037,66594.0,66593.0,1.37262009]
[1722358043383,0.0018037,66594.0,66593.0,1.37362009]
[1722358043528,0.0018037,66594.0,66593.0,1.37262009]
[1722358043932,0.0028037,66594.0,66593.0,1.37362009]
[1722358044365,0.0018037,66594.0,66593.0,1.37261933]
[1722358044561,0.0028037,66594.0,66593.0,1.37361933]
[1722358044971,0.0018037,66594.0,66593.0,1.37261933]
[1722358045899,0.00083,66605.0,66604.0,0.900846]
[1722358046110,0.00083,66605.0,66604.0,1.90628868]
[1722358046356,0.00083,66605.0,66604.0,1.91678245]
[1722358047184,0.00083,66605.0,66604.0,1.96134024]
[1722358047388,0.00083,66605.0,66604.0,1.88597927]
[1722358047562,0.00083,66605.0,66604.0,1.99211613]
[1722358048404,0.00183,66605.0,66604.0,1.99311613]
[1722358049035,0.00083,66605.0,66604.0,1.99211613]
[1722358049283,0.00083,66605.0,66604.0,1.54120109]
[1722358049496,0.00083,66605.0,66604.0,1.47305116]
[1722358049896,0.00183,66605.0,66604.0,1.48005116]
[1722358050793,0.00183,66605.0,66604.0,1.48006017]
[1722358050989,0.00183,66605.0,66604.0,1.37827509]
[1722358051191,0.00083,66605.0,66604.0,1.37127509]
[1722358051605,0.00183,66605.0,66604.0,1.37827509]
[1722358052218,0.00083,66605.0,66604.0,1.79634312]
[1722358052423,0.00083,66605.0,66604.0,1.49606112]
[1722358052633,0.00183,66605.0,66604.0,1.53314112]
[1722358052832,0.00083,66605.0,66604.0,1.52614112]
[1722358053250,0.00183,66605.0,66604.0,1.83342312]
[1722358054109,0.00183,66605.0,66604.0,1.83341527]
[1722358054556,0.00083,66605.0,66604.0,1.49605327]
[1722358054778,0.00083,66605.0,66604.0,1.79633527]
[1722358054964,0.00183,66605.0,66604.0,1.80333527]
[1722358055174,0.00183,66605.0,66604.0,1.79633527]
[1722358055574,0.00283,66605.0,66604.0,1.80333527]
[1722358055789,0.00083,66605.0,66604.0,1.82641527]
[1722358056230,0.00183,66605.0,66604.0,1.53313327]
[1722358056823,0.00183,66605.0,66604.0,1.54214629]
[1722358057507,0.00183,66605.0,66604.0,1.84243094]
[1722358057742,0.00183,66605.0,66604.0,1.54214894]
[1722358057962,0.00183,66605.0,66604.0,1.51206894]
[1722358059044,0.00083,66605.0,66604.0,1.50506894]
[1722358059199,0.00083,66605.0,66604.0,1.50906894]
[1722358059435,0.00083,66605.0,66604.0,1.80935094]
[1722358059630,0.00083,66605.0,66604.0,1.80535094]
[1722358059809,0.00083,66605.0,66604.0,1.80935094]
[1722358060679,0.00083,66605.0,66604.0,1.50906761]
[1722358061294,0.00083,66605.0,66604.0,1.50506761]
[1722358061727,0.00183,66605.0,66604.0,1.51006761]
[1722358061866,0.00083,66605.0,66604.0,1.50506761]
[1722358062103,0.00183,66605.0,66604.0,1.51006761]
[1722358062938,0.00183,66605.0,66604.0,1.51024834]
[1722358063697,0.00183,66605.0,66604.0,1.50123532]
[1722358063920,0.00183,66605.0,66604.0,1.5012394]
[1722358066256,0.00183,66605.0,66604.0,2.11423444]
[1722358066465,0.00083,66626.0,66625.0,1.190154]
[1722358066658,0.00083,66626.0,66625.0,1.213154]
[1722358066858,0.00083,66626.0,66625.0,1.6483539]
[1722358067252,0.00083,66626.0,66625.0,1.64835213]
[1722358068244,0.00083,66626.0,66625.0,1.67843213]
[1722358068451,0.00083,66626.0,66625.0,1.85477803]
[1722358068828,0.00183,66626.0,66625.0,2.0538897]
[1722358069033,0.00083,66626.0,66625.0,2.0418897]
[1722358069493,0.00183,66626.0,66625.0,2.0558897]
[1722358070416,0.00183,66626.0,66625.0,2.06476553]
[1722358071038,0.00183,66626.0,66625.0,2.1090601]
[1722358071238,0.00183,66626.0,66625.0,2.06476553]
[1722358071439,0.00183,66626.0,66625.0,2.13122396]
[1722358071815,0.00183,66626.0,66625.0,2.15337677]
[1722358072471,0.00183,66626.0,66625.0,2.17552958]
[1722358073118,0.00183,66626.0,66625.0,2.06476553]
[1722358073763,0.00183,66626.0,66625.0,1.75291415]
[1722358074019,0.00183,66626.0,66625.0,2.06474148]
[1722358074214,0.00183,66626.0,66625.0,2.17542547]
[1722358074457,0.00183,66626.0,66625.0,2.06475672]
[1722358074600,0.00183,66626.0,66625.0,1.72560208]
[1722358074806,0.00183,66626.0,66625.0,0.62258206]
[1722358075004,0.00183,66626.0,66625.0,1.11228204]
[1722358075330,0.00183,66626.0,66625.0,1.2253635]
[1722358075527,0.00183,66626.0,66625.0,0.6249895]
[1722358075736,0.00083,66626.0,66625.0,0.6109895]
[1722358075907,0.00083,66626.0,66625.0,0.9111765]
[1722358076133,0.00083,66626.0,66625.0,0.9391765]
[1722358076341,0.00083,66626.0,66625.0,0.9341765]
[1722358076964,0.00083,66626.0,66625.0,0.80943947]
[1722358077170,0.00083,66626.0,66625.0,0.93419421]
[1722358077855,0.00083,66626.0,66625.0,0.63400721]
[1722358078072,0.00083,66626.0,66625.0,0.63900721]
[1722358078488,0.00083,66626.0,66625.0,0.16072721]
[1722358078489,0.150921,66626.0,66625.0,0.16072721]
[1722358078703,0.150921,66626.0,66625.0,0.16172721]
[1722358079079,0.150921,66626.0,66625.0,0.16072721]
[1722358079275,0.150921,66626.0,66625.0,0.1514676]
[1722358079500,0.150921,66626.0,66625.0,0.16172128]
[1722358079501,0.812087,66626.0,66625.0,0.16172128]
[1722358079706,0.511904,66626.0,66625.0,0.13500842]
[1722358079925,0.511904,66626.0,66625.0,0.12475474]
[1722358080081,0.517904,66626.0,66625.0,0.14848389]
[1722358080281,0.217721,66626.0,66625.0,0.02372915]
[1722358080517,0.217721,66626.0,66625.0,0.14850106]
[1722358080518,0.517904,66626.0,66625.0,0.14850106]
[1722358080693,0.217721,66626.0,66625.0,0.13602559]
[1722358081150,0.96872004,66626.0,66625.0,0.13602559]
[1722358081315,0.96272004,66626.0,66625.0,0.14862815]
[1722358081518,0.96272004,66626.0,66625.0,0.01360256]
[1722358081732,0.96872004,66626.0,66625.0,0.001]
[1722358082001,0.150103,66621.0,66617.0,0.04434986]
[1722358082203,0.15063304,66625.0,66618.0,0.12477783]
[1722358082446,0.150096,66624.0,66619.0,0.27488483]
[1722358082645,0.150096,66624.0,66620.0,0.21396761]
[1722358082848,0.15063304,66625.0,66621.0,0.12477783]
[1722358083053,0.15063304,66625.0,66622.0,0.12477783]
[1722358083256,0.30072704,66625.0,66623.0,0.12477783]
[1722358083468,0.30072704,66625.0,66622.0,0.01029091]
[1722358083469,0.150096,66624.0,66622.0,0.01029091]
[1722358083683,0.150096,66624.0,66620.0,0.08918978]
[1722358083894,0.450289,66624.0,66623.0,0.12477233]
[1722358084094,0.150099,66623.0,66620.0,0.13362182]
[1722358084341,0.30072704,66625.0,66621.0,0.12477301]
[1722358084547,0.150098,66623.0,66622.0,0.2023094]
[1722358084738,0.15063304,66625.0,66622.0,0.2023094]
[1722358084739,0.150096,66624.0,66622.0,0.2023094]
[1722358084977,0.15063304,66625.0,66623.0,0.12477301]
[1722358084978,0.30072704,66625.0,66623.0,0.12477301]
[1722358085151,0.30072704,66625.0,66624.0,0.12477301]
[1722358085348,0.00083,66626.0,66624.0,0.12477301]
[1722358085566,0.00083,66626.0,66625.0,0.64997856]
[1722358085706,0.00083,66626.0,66625.0,0.97316556]
[1722358085907,0.00083,66626.0,66625.0,1.27335256]
[1722358086314,0.00083,66626.0,66625.0,1.50891664]
[1722358086516,0.01383,66626.0,66625.0,1.41705075]
[1722358086933,0.01383,66626.0,66625.0,1.7172177]
[1722358087126,0.01383,66626.0,66625.0,1.9564774]
[1722358087321,0.01383,66626.0,66625.0,1.60415803]
[1722358087764,0.01383,66626.0,66625.0,1.73749067]
[1722358087970,0.01383,66626.0,66625.0,1.60415803]
[1722358088929,0.00083,66626.0,66625.0,1.60415803]
[1722358089122,0.00483,66626.0,66625.0,1.4170307]
[1722358089405,0.00083,66626.0,66625.0,1.4170307]
[1722358089833,0.00083,66626.0,66625.0,1.4200307]
[1722358090012,0.00083,66626.0,66625.0,1.87085074]
[1722358090255,0.00083,66626.0,66625.0,1.74609778]
[1722358090458,0.00083,66626.0,66625.0,2.05796316]
[1722358092098,0.00083,66626.0,66625.0,2.05496316]
[1722358092280,0.00083,66626.0,66625.0,2.58210803]
[1722358092555,0.00183,66626.0,66625.0,2.10104316]
[1722358092730,0.00083,66626.0,66625.0,2.08504316]
[1722358093136,0.00183,66626.0,66625.0,2.20504316]
[1722358093363,0.00083,66626.0,66625.0,2.39392103]
[1722358093510,0.00083,66626.0,66625.0,2.49718911]
[1722358094121,0.00083,66626.0,66625.0,2.19700211]
[1722358094322,0.00183,66626.0,66625.0,2.19300211]
[1722358095314,0.00183,66626.0,66625.0,2.203256]
[1722358095742,0.00183,66626.0,66625.0,2.215256]
[1722358096583,0.00183,66626.0,66625.0,2.203256]
[1722358096797,0.00183,66626.0,66625.0,1.89143167]
[1722358097003,0.00183,66626.0,66625.0,2.2032555]
[1722358098581,0.00183,66626.0,66625.0,2.3143765]
[1722358099257,0.00183,66626.0,66625.0,2.2032555]
[1722358099468,0.00183,66626.0,66625.0,2.2132555]
[1722358099683,0.00183,66626.0,66625.0,2.31436578]
[1722358100326,0.00183,66626.0,66625.0,2.2132563]
[1722358100528,0.00183,66626.0,66625.0,2.3021415]
[1722358100734,0.00183,66626.0,66625.0,2.5354433]
[1722358100960,0.00183,66626.0,66625.0,2.64654922]
[1722358101087,0.00183,66626.0,66625.0,2.5354433]
[1722358101889,0.003,66651.0,66650.0,1.050262]
[1722358102092,0.003,66651.0,66650.0,1.073262]
[1722358102376,0.003,66651.0,66650.0,1.20795307]
[1722358102709,0.003,66651.0,66650.0,1.08324454]
[1722358103323,0.011,66651.0,66650.0,1.65965907]
[1722358103556,0.011,66651.0,66650.0,1.81034554]
[1722358104140,0.011,66651.0,66650.0,1.39927342]
[1722358104367,0.011,66651.0,66650.0,1.3596375]
[1722358104708,0.011,66651.0,66650.0,1.23493886]
[1722358105316,0.011,66651.0,66650.0,0.63478886]
[1722358105543,0.003,66651.0,66650.0,0.63378886]
[1722358105748,0.003,66651.0,66650.0,0.49109454]
[1722358106083,0.003,66651.0,66650.0,0.18301954]
[1722358106219,0.153035,66651.0,66650.0,0.00998254]
[1722358106422,0.150038,66650.0,66645.0,0.150048]
[1722358106652,0.003,66651.0,66647.0,0.150043]
[1722358106813,0.003,66651.0,66646.0,0.05509752]
[1722358106814,0.153035,66651.0,66648.0,0.01006016]
[1722358107011,0.003,66651.0,66649.0,0.03551769]
[1722358107313,0.753175,66651.0,66650.0,0.0100385]
[1722358107842,0.15363304,66651.0,66640.0,0.150059]
[1722358108018,0.150048,66646.0,66641.0,0.04652489]
[1722358108222,0.150048,66646.0,66641.0,0.20671787]
[1722358108434,0.15363304,66651.0,66641.0,0.05666087]
[1722358108633,0.890377,66642.0,66641.0,0.01013598]
[1722358108838,0.890377,66642.0,66626.0,0.15178088]
[1722358108839,0.59084404,66642.0,66628.0,0.300172]
[1722358109039,0.150079,66632.0,66629.0,0.0402832]
[1722358109264,0.150079,66632.0,66629.0,0.010266]
[1722358109445,0.150076,66633.0,66627.0,0.150088]
[1722358109599,0.150078,66632.0,66628.0,0.01027684]
[1722358109799,0.150074,66634.0,66629.0,0.08057606]
[1722358110013,0.150074,66634.0,66630.0,0.01025516]
[1722358110218,0.1431,66642.0,66634.0,0.150072]
[1722358110410,0.1431,66642.0,66635.0,0.01020098]
[1722358110411,0.15006,66640.0,66635.0,0.01020098]
[1722358110612,0.300121,66640.0,66635.0,0.01020098]
[1722358110841,0.300115,66641.0,66636.0,0.04890294]
[1722358110842,0.150064,66639.0,66636.0,0.04890294]
[1722358111041,0.150064,66639.0,66637.0,0.01017932]
[1722358111287,0.300115,66641.0,66638.0,0.02091553]
[1722358111288,0.150058,66641.0,66638.0,0.02091553]
[1722358111492,0.15006,66640.0,66637.0,0.01017932]
[1722358111730,0.150062,66639.0,66638.0,0.05093013]
[1722358112161,0.300116,66641.0,66638.0,0.05093013]
[1722358112162,0.15006,66640.0,66638.0,0.05093013]
[1722358112534,0.150062,66639.0,66638.0,0.05093013]
[1722358113166,0.29473304,66642.0,66636.0,0.04890294]
[1722358113167,0.300122,66640.0,66636.0,0.04890294]
[1722358113336,0.150064,66638.0,66636.0,0.04890294]
[1722358113539,0.150064,66638.0,66637.0,0.01999779]
[1722358114358,0.300133,66637.0,66615.0,0.10701695]
[1722358114600,0.15063304,66637.0,66629.0,0.07534716]
[1722358114761,0.15063304,66637.0,66626.0,0.15009]
[1722358114972,0.150076,66633.0,66627.0,0.25447245]
[1722358115176,0.150076,66633.0,66628.0,0.150086]
[1722358115394,0.150081,66631.0,66629.0,0.10049325]
[1722358115589,0.150081,66631.0,66627.0,0.023]
[1722358115812,0.150078,66632.0,66627.0,0.173088]
[1722358116049,0.150078,66632.0,66628.0,0.077346]
[1722358116254,0.150076,66633.0,66628.0,0.077346]
[1722358116413,0.300153,66633.0,66628.0,0.077346]
[1722358116620,0.150081,66631.0,66628.0,0.077346]
[1722358116815,0.150081,66631.0,66629.0,0.0527625]
[1722358117016,0.150082,66630.0,66629.0,0.0527625]
[1722358117481,0.45079804,66630.0,66615.0,0.0001807]
[1722358117627,0.45079804,66630.0,66619.0,0.150107]
[1722358117628,0.150097,66624.0,66619.0,0.150107]
[1722358117846,0.150096,66624.0,66620.0,0.04805907]
[1722358118049,0.150099,66623.0,66620.0,0.04805907]
[1722358118269,0.150099,66623.0,66618.0,0.150109]
[1722358118430,0.150099,66623.0,66618.0,0.150108]
[1722358118633,0.150094,66625.0,66620.0,0.22545116]
[1722358119011,0.300187,66626.0,66621.0,0.08258892]
[1722358119209,0.150096,66624.0,66619.0,0.150106]
[1722358119421,0.51815216,66621.0,66615.0,0.0001807]
[1722358119621,1.199798,66616.0,66615.0,0.0001807]
[1722358119826,1.299798,66616.0,66615.0,0.0001807]
[1722358120028,1.319798,66616.0,66615.0,0.0001807]
[1722358120636,1.47043104,66616.0,66615.0,0.0001807]
[1722358120967,1.77065904,66616.0,66615.0,0.0001807]
[1722358121355,1.45043104,66616.0,66615.0,0.0001807]
[1722358122172,1.46443104,66616.0,66615.0,0.0011807]
[1722358122375,1.45043104,66616.0,66615.0,0.0001807]
[1722358122775,1.45443104,66616.0,66615.0,0.0011807]
[1722358122978,1.15420304,66616.0,66615.0,0.0001807]
[1722358123398,1.46843104,66616.0,66615.0,0.0011807]
[1722358124002,1.48843104,66616.0,66615.0,0.0011807]
[1722358124202,1.76865904,66616.0,66615.0,0.0011807]
[1722358124474,1.46843104,66616.0,66615.0,0.0011807]
[1722358125076,1.48843104,66616.0,66615.0,0.0011807]
[1722358125287,1.46843104,66616.0,66615.0,0.0011807]
[1722358131031,1.49843104,66616.0,66615.0,0.0011807]
[1722358131227,1.77865904,66616.0,66615.0,0.0011807]
[1722358131650,1.47843104,66616.0,66615.0,0.0011807]
[1722358134523,1.79865904,66616.0,66615.0,0.0011807]
[1722358135531,1.77865904,66616.0,66615.0,0.0011807]
[1722358136098,1.79865904,66616.0,66615.0,0.0011807]
[1722358137785,1.205855,66606.0,66605.0,0.000913]
[1722358138032,1.59088804,66606.0,66605.0,0.000913]
[1722358138159,1.99116104,66606.0,66605.0,0.000913]
[1722358138359,1.97116104,66606.0,66605.0,0.000913]
[1722358138964,1.83726104,66606.0,66605.0,0.001913]
[1722358139186,1.82726104,66606.0,66605.0,0.001913]
[1722358140298,1.81626104,66606.0,66605.0,0.000913]
[1722358140499,1.51598804,66606.0,66605.0,0.000913]
[1722358140695,1.22971504,66606.0,66605.0,0.001913]
[1722358142187,1.52998804,66606.0,66605.0,0.001913]
[1722358142362,1.22971504,66606.0,66605.0,0.001913]
[1722358145842,0.92944204,66606.0,66605.0,0.001913]
[1722358146060,1.22971504,66606.0,66605.0,0.001913]
[1722358147150,0.92944204,66606.0,66605.0,0.001913]
[1722358148067,0.62916904,66606.0,66605.0,0.001913]
[1722358148251,0.92944204,66606.0,66605.0,0.001913]
[1722358148505,1.52998804,66606.0,66605.0,0.13727961]
[1722358148743,1.52998804,66606.0,66605.0,0.12673729]
[1722358149369,1.22971504,66606.0,66605.0,0.12673729]
[1722358149573,1.22971504,66606.0,66605.0,0.12673591]
[1722358149774,1.52998804,66606.0,66605.0,0.12673591]
[1722358151483,1.22971504,66606.0,66605.0,0.1394095]
[1722358151791,0.71504204,66606.0,66605.0,0.12673591]
[1722358151924,0.71504204,66606.0,66605.0,0.26963591]
[1722358151925,0.26463304,66606.0,66605.0,0.26963591]
[1722358152113,0.26463304,66606.0,66605.0,0.34823493]
[1722358152731,0.114,66606.0,66605.0,1.09892952]
[1722358152948,0.114,66606.0,66605.0,1.39920652]
[1722358153198,0.114,66606.0,66605.0,2.06032326]
[1722358153587,0.114,66606.0,66605.0,1.75904626]
[1722358153803,0.1,66606.0,66605.0,1.75904626]
[1722358154002,0.114,66606.0,66605.0,1.76004626]
[1722358154285,0.1,66606.0,66605.0,2.25581745]
[1722358154491,0.1,66606.0,66605.0,2.05932326]
[1722358154694,0.15931707,66630.0,66625.0,0.0661]
[1722358154695,0.00923407,66630.0,66625.0,0.0661]
[1722358154903,0.150087,66628.0,66627.0,0.04436465]
[1722358155079,0.30072004,66628.0,66627.0,0.16919015]
[1722358155279,0.30072004,66628.0,66627.0,0.1248255]
[1722358155480,0.60089404,66628.0,66627.0,0.20201666]
[1722358156087,0.60089404,66628.0,66627.0,0.07719116]
[1722358156248,0.60089404,66628.0,66627.0,0.20196703]
[1722358156648,0.90106804,66628.0,66627.0,0.20196703]
[1722358156847,0.90106804,66628.0,66627.0,0.01030177]
[1722358157081,0.91406804,66628.0,66627.0,0.01130177]
[1722358157304,0.31372004,66628.0,66627.0,0.001]
[1722358157515,0.61389404,66628.0,66627.0,0.12577604]
[1722358157724,0.61389404,66628.0,66627.0,0.15309304]
[1722358158008,0.30072004,66628.0,66627.0,0.15209304]
[1722358158231,0.30155004,66628.0,66627.0,0.027317]
[1722358158438,0.31455004,66628.0,66627.0,0.028317]
[1722358158768,0.60172404,66628.0,66627.0,0.027317]
[1722358158973,0.90189804,66628.0,66627.0,0.027317]
[1722358159188,0.60172404,66628.0,66627.0,0.01701523]
[1722358159573,0.60172404,66628.0,66627.0,0.02731297]
[1722358159799,0.60172404,66628.0,66627.0,0.889545]
[1722358159800,0.00083,66628.0,66627.0,0.889545]
[1722358160205,0.01383,66628.0,66627.0,0.90084274]
[1722358160407,0.01383,66628.0,66627.0,0.57288726]
[1722358160613,0.163917,66628.0,66627.0,0.34245711]
[1722358160861,0.01383,66628.0,66627.0,0.15039774]
[1722358161077,0.150917,66628.0,66627.0,0.14939774]
[1722358161568,0.162917,66628.0,66627.0,0.15039774]
[1722358161761,0.150917,66628.0,66627.0,0.01029774]
[1722358161894,0.462091,66628.0,66627.0,0.01129774]
[1722358162094,0.462091,66628.0,66627.0,0.03456664]
[1722358162294,0.462091,66628.0,66627.0,0.04486438]
[1722358162498,0.161917,66628.0,66627.0,0.01129774]
[1722358162900,0.462091,66628.0,66627.0,0.01129774]
[1722358163080,0.91289804,66628.0,66627.0,0.01129774]
[1722358163288,0.61272404,66628.0,66627.0,0.01289256]
[1722358163658,0.61272404,66628.0,66627.0,0.0231903]
[1722358163884,0.91289804,66628.0,66627.0,0.0231903]
[1722358164269,0.91289804,66628.0,66627.0,0.01289256]
[1722358164713,0.91289804,66628.0,66627.0,0.0231903]
[1722358164920,0.91289804,66628.0,66627.0,0.01129774]
[1722358164921,1.21307204,66628.0,66627.0,0.01129774]
[1722358165142,1.21307204,66628.0,66627.0,0.001]
[1722358165143,1.36307204,66628.0,66627.0,0.001]